fUST/lending_fUST_20260518
["ID","MTS","AMOUNT","RATE_DAILY","PERIOD"]
[422532045,1779040241000,-16810.0,0.0001,2]
[422532040,1779040241000,-168.24500534,9.71e-05,7]
[422532026,1779040241000,-684.62906793,9.698e-05,2]
[422532042,1779040241000,-1815.19127201,9.979e-05,2]
[422532034,1779040241000,-86002.61888158,9.698e-05,2]
[422532035,1779040241000,-25874.01631364,9.699e-05,2]
[422532030,1779040241000,-684.62906793,9.698e-05,2]
[422532197,1779040242000,-500.0,0.00010958,2]
[422532188,1779040242000,-500.0,0.00010958,2]
[422532200,1779040242000,-500.0,0.00010958,2]
[422532184,1779040242000,-500.0,0.00010958,2]
[422532195,1779040242000,-926.31,0.00010958,2]
[422532181,1779040242000,-739.23,0.00010958,2]
[422532191,1779040242000,-389.25807078,0.00010958,2]
[422532179,1779040242000,-2766.44,0.00010958,2]
[422532186,1779040242000,-516.28,0.00010958,2]
[422532193,1779040242000,-500.0,0.00010958,2]
[422532211,1779040242000,-520.56715993,0.00010958,2]
[422532204,1779040242000,-500.0,0.00010958,2]
[422532206,1779040242000,-1471.0,0.00010958,2]
[422532208,1779040242000,-554.22528769,0.00010958,2]
[422532213,1779040242000,-500.0,0.00010958,2]
[422532216,1779040242000,-500.0,0.00010958,2]
[422532218,1779040242000,-500.0,0.00010958,2]
[422532224,1779040242000,-635.22,0.00010958,2]
[422532220,1779040242000,-500.0,0.00010958,2]
[422532177,1779040242000,-533.49930899,0.00010958,2]
[422532202,1779040242000,-500.0,0.00010958,2]
[422532172,1779040242000,-500.0,0.00010958,2]
[422532136,1779040242000,-500.0,0.00010958,2]
[422532165,1779040242000,-500.0,0.00010958,2]
[422532222,1779040242000,-517.95,0.00010958,2]
[422532127,1779040242000,-174.08244218,0.00010941,7]
[422532126,1779040242000,-179.60250689,0.00010941,7]
[422532135,1779040242000,-500.0,0.00010958,2]
[422532133,1779040242000,-3429.3122,0.00010958,2]
[422532129,1779040242000,-793.94,0.00010952,2]
[422532131,1779040242000,-4328.2313,0.00010958,2]
[422532138,1779040242000,-500.0,0.00010958,2]
[422532140,1779040242000,-500.0,0.00010958,2]
[422532174,1779040242000,-500.0,0.00010958,2]
[422532142,1779040242000,-500.0,0.00010958,2]
[422532157,1779040242000,-647.57,0.00010958,2]
[422532162,1779040242000,-535.75,0.00010958,2]
[422532148,1779040242000,-500.0,0.00010958,2]
[422532159,1779040242000,-500.0,0.00010958,2]
[422532146,1779040242000,-535.43063913,0.00010958,2]
[422532144,1779040242000,-500.0,0.00010958,2]
[422532150,1779040242000,-500.0,0.00010958,2]
[422532167,1779040242000,-2099.55,0.00010958,2]
[422532170,1779040242000,-500.0,0.00010958,2]
[422532154,1779040242000,-500.0,0.00010958,2]
[422532238,1779040242000,-779.11,0.00010958,2]
[422532124,1779040242000,-461.22630683,0.00010941,7]
[422532229,1779040242000,-500.0,0.00010958,2]
[422532283,1779040242000,-633.25,0.00010958,2]
[422532281,1779040242000,-809.83,0.00010958,2]
[422532285,1779040242000,-500.0,0.00010958,2]
[422532297,1779040242000,-500.0,0.00010958,2]
[422532291,1779040242000,-500.0,0.00010958,2]
[422532287,1779040242000,-1000.0,0.00010958,2]
[422532294,1779040242000,-500.0,0.00010958,2]
[422532299,1779040242000,-500.0,0.00010958,2]
[422532301,1779040242000,-500.0,0.00010958,2]
[422532278,1779040242000,-500.0,0.00010958,2]
[422532304,1779040242000,-500.0,0.00010958,2]
[422532332,1779040242000,-2279.35,0.00010958,2]
[422532325,1779040242000,-500.0,0.00010958,2]
[422532328,1779040242000,-500.0,0.00010958,2]
[422532330,1779040242000,-500.0,0.00010958,2]
[422532312,1779040242000,-777.64,0.00010958,2]
[422532314,1779040242000,-576.34,0.00010958,2]
[422532320,1779040242000,-500.0,0.00010958,2]
[422532318,1779040242000,-880.63,0.00010958,2]
[422532226,1779040242000,-500.0,0.00010958,2]
[422532308,1779040242000,-500.0,0.00010958,2]
[422532271,1779040242000,-835.37,0.00010958,2]
[422532323,1779040242000,-1008.15,0.00010958,2]
[422532267,1779040242000,-500.0,0.00010958,2]
[422532269,1779040242000,-500.0,0.00010958,2]
[422532228,1779040242000,-500.0,0.00010958,2]
[422532230,1779040242000,-500.0,0.00010958,2]
[422532233,1779040242000,-500.0,0.00010958,2]
[422532232,1779040242000,-500.0,0.00010958,2]
[422532231,1779040242000,-500.0,0.00010958,2]
[422532236,1779040242000,-676.21,0.00010958,2]
[422532240,1779040242000,-848.33,0.00010958,2]
[422532242,1779040242000,-573.84,0.00010958,2]
[422532251,1779040242000,-500.0,0.00010958,2]
[422532234,1779040242000,-708.42,0.00010958,2]
[422532245,1779040242000,-831.21,0.00010958,2]
[422532249,1779040242000,-500.0,0.00010958,2]
[422532260,1779040242000,-500.0,0.00010958,2]
[422532254,1779040242000,-500.0,0.00010958,2]
[422532256,1779040242000,-440.27472992,0.00010958,2]
[422532258,1779040242000,-500.0,0.00010958,2]
[422532262,1779040242000,-1168.35,0.00010958,2]
[422532265,1779040242000,-500.0,0.00010958,2]
[422532274,1779040242000,-500.0,0.00010958,2]
[422532247,1779040242000,-798.07,0.00010958,2]
[422532276,1779040242000,-500.0,0.00010958,2]
[422532423,1779040243000,-500.0,0.00010958,2]
[422532405,1779040243000,-500.0,0.00010958,2]
[422532399,1779040243000,-500.0,0.00010958,2]
[422532403,1779040243000,-500.0,0.00010958,2]
[422532401,1779040243000,-664.0899,0.00010958,2]
[422532411,1779040243000,-500.0,0.00010958,2]
[422532417,1779040243000,-500.0,0.00010958,2]
[422532413,1779040243000,-666.11,0.00010958,2]
[422532415,1779040243000,-500.0,0.00010958,2]
[422532407,1779040243000,-500.0,0.00010958,2]
[422532409,1779040243000,-500.0,0.00010958,2]
[422532419,1779040243000,-997.6,0.00010958,2]
[422532421,1779040243000,-500.0,0.00010958,2]
[422532448,1779040243000,-500.0,0.00010958,2]
[422532435,1779040243000,-500.0,0.00010958,2]
[422532438,1779040243000,-1882.04,0.00010958,2]
[422532437,1779040243000,-500.0,0.00010958,2]
[422532429,1779040243000,-500.0,0.00010958,2]
[422532444,1779040243000,-500.0,0.00010958,2]
[422532433,1779040243000,-626.83,0.00010958,2]
[422532427,1779040243000,-500.0,0.00010958,2]
[422532442,1779040243000,-500.0,0.00010958,2]
[422532440,1779040243000,-500.0,0.00010958,2]
[422532446,1779040243000,-720.74,0.00010958,2]
[422532450,1779040243000,-500.0,0.00010958,2]
[422532452,1779040243000,-500.0,0.00010958,2]
[422532397,1779040243000,-500.0,0.00010958,2]
[422532425,1779040243000,-599.0064261,0.00010958,2]
[422532395,1779040243000,-500.0,0.00010958,2]
[422532348,1779040243000,-500.0,0.00010958,2]
[422532379,1779040243000,-787.39,0.00010958,2]
[422532334,1779040243000,-363.16497242,0.00010958,2]
[422532339,1779040243000,-500.0,0.00010958,2]
[422532341,1779040243000,-2394.34,0.00010958,2]
[422532346,1779040243000,-1243.98,0.00010958,2]
[422532344,1779040243000,-738.27,0.00010958,2]
[422532337,1779040243000,-505.68202944,0.00010958,2]
[422532462,1779040243000,-500.0,0.00010958,2]
[422532351,1779040243000,-500.0,0.00010958,2]
[422532363,1779040243000,-500.0,0.00010958,2]
[422532365,1779040243000,-685.16,0.00010958,2]
[422532353,1779040243000,-500.0,0.00010958,2]
[422532368,1779040243000,-567.47,0.00010958,2]
[422532370,1779040243000,-2549.92,0.00010958,2]
[422532355,1779040243000,-500.0,0.00010958,2]
[422532360,1779040243000,-730.17,0.00010958,2]
[422532366,1779040243000,-500.0,0.00010958,2]
[422532358,1779040243000,-500.0,0.00010958,2]
[422532372,1779040243000,-500.0,0.00010958,2]
[422532374,1779040243000,-500.0,0.00010958,2]
[422532376,1779040243000,-500.0,0.00010958,2]
[422532385,1779040243000,-500.0,0.00010958,2]
[422532387,1779040243000,-696.05,0.00010958,2]
[422532389,1779040243000,-500.0,0.00010958,2]
[422532391,1779040243000,-500.0,0.00010958,2]
[422532393,1779040243000,-500.0,0.00010958,2]
[422532377,1779040243000,-500.0,0.00010958,2]
[422532381,1779040243000,-500.0,0.00010958,2]
[422532383,1779040243000,-500.0,0.00010958,2]
[422532454,1779040243000,-500.0,0.00010958,2]
[422532431,1779040243000,-510.92,0.00010958,2]
[422532464,1779040243000,-500.0,0.00010958,2]
[422532516,1779040243000,-500.0,0.00010958,2]
[422532528,1779040243000,-500.0,0.00010958,2]
[422532532,1779040243000,-500.0,0.00010958,2]
[422532530,1779040243000,-500.0,0.00010958,2]
[422532535,1779040243000,-500.0,0.00010958,2]
[422532547,1779040243000,-500.0,0.00010958,2]
[422532526,1779040243000,-500.0,0.00010958,2]
[422532541,1779040243000,-500.0,0.00010958,2]
[422532539,1779040243000,-5887.8,0.00010958,2]
[422532537,1779040243000,-500.0,0.00010958,2]
[422532543,1779040243000,-548.18,0.00010958,2]
[422532545,1779040243000,-500.0,0.00010958,2]
[422532551,1779040243000,-500.0,0.00010958,2]
[422532522,1779040243000,-500.0,0.00010958,2]
[422532555,1779040243000,-587.28,0.00010958,2]
[422532553,1779040243000,-500.0,0.00010958,2]
[422532563,1779040243000,-500.0,0.00010958,2]
[422532571,1779040243000,-519.38,0.00010958,2]
[422532569,1779040243000,-833.65,0.00010958,2]
[422532566,1779040243000,-633.4,0.00010958,2]
[422532573,1779040243000,-500.0,0.00010958,2]
[422532575,1779040243000,-799.98,0.00010958,2]
[422532577,1779040243000,-500.0,0.00010958,2]
[422532557,1779040243000,-500.0,0.00010958,2]
[422532559,1779040243000,-367.33,0.00010958,2]
[422532561,1779040243000,-1050.47,0.00010958,2]
[422532578,1779040243000,-2846.01,0.00010958,2]
[422532458,1779040243000,-592.06,0.00010958,2]
[422532564,1779040243000,-1559.87,0.00010958,2]
[422532514,1779040243000,-500.0,0.00010958,2]
[422532548,1779040243000,-5973.24,0.00010958,2]
[422532524,1779040243000,-500.0,0.00010958,2]
[422532470,1779040243000,-500.0,0.00010958,2]
[422532520,1779040243000,-500.0,0.00010958,2]
[422532466,1779040243000,-3980.64,0.00010958,2]
[422532456,1779040243000,-2107.53,0.00010958,2]
[422532460,1779040243000,-810.26,0.00010958,2]
[422532468,1779040243000,-500.0,0.00010958,2]
[422532471,1779040243000,-500.0,0.00010958,2]
[422532473,1779040243000,-500.0,0.00010958,2]
[422532475,1779040243000,-500.0,0.00010958,2]
[422532487,1779040243000,-663.88,0.00010958,2]
[422532489,1779040243000,-500.0,0.00010958,2]
[422532479,1779040243000,-500.0,0.00010958,2]
[422532491,1779040243000,-500.0,0.00010958,2]
[422532481,1779040243000,-3128.16,0.00010958,2]
[422532477,1779040243000,-757.86,0.00010958,2]
[422532507,1779040243000,-500.0,0.00010958,2]
[422532518,1779040243000,-500.0,0.00010958,2]
[422532503,1779040243000,-281.62124723,0.00010958,2]
[422532493,1779040243000,-1739.89,0.00010958,2]
[422532509,1779040243000,-543.73,0.00010958,2]
[422532513,1779040243000,-1118.47,0.00010958,2]
[422532501,1779040243000,-500.0,0.00010958,2]
[422532511,1779040243000,-500.0,0.00010958,2]
[422532505,1779040243000,-500.0,0.00010958,2]
[422532483,1779040243000,-440.54017475,0.00010958,2]
[422532485,1779040243000,-500.0,0.00010958,2]
[422532497,1779040243000,-500.0,0.00010958,2]
[422532495,1779040243000,-500.0,0.00010958,2]
[422532499,1779040243000,-680.73,0.00010958,2]
[422532667,1779040244000,-500.0,0.00010958,2]
[422532656,1779040244000,-1717.49,0.00010958,2]
[422532671,1779040244000,-690.47,0.00010958,2]
[422532652,1779040244000,-804.66,0.00010958,2]
[422532665,1779040244000,-500.0,0.00010958,2]
[422532659,1779040244000,-516.17,0.00010958,2]
[422532643,1779040244000,-1216.42,0.00010958,2]
[422532648,1779040244000,-1782.21,0.00010958,2]
[422532647,1779040244000,-3286.57,0.00010958,2]
[422532645,1779040244000,-1108.11,0.00010958,2]
[422532650,1779040244000,-646.859176,0.00010958,2]
[422532669,1779040244000,-729.16,0.00010958,2]
[422532663,1779040244000,-500.0,0.00010958,2]
[422532654,1779040244000,-500.0,0.00010958,2]
[422532696,1779040244000,-500.0,0.00010958,2]
[422532661,1779040244000,-827.25,0.00010958,2]
[422532673,1779040244000,-743.61,0.00010958,2]
[422532676,1779040244000,-622.61,0.00010958,2]
[422532675,1779040244000,-5510.43,0.00010958,2]
[422532689,1779040244000,-344.24812949,0.00010958,2]
[422532691,1779040244000,-500.0,0.00010958,2]
[422532680,1779040244000,-500.0,0.00010958,2]
[422532678,1779040244000,-500.0,0.00010958,2]
[422532692,1779040244000,-500.0,0.00010958,2]
[422532682,1779040244000,-500.0,0.00010958,2]
[422532685,1779040244000,-807.19,0.00010958,2]
[422532684,1779040244000,-500.0,0.00010958,2]
[422532687,1779040244000,-500.0,0.00010958,2]
[422532636,1779040244000,-500.0,0.00010958,2]
[422532658,1779040244000,-500.0,0.00010958,2]
[422532639,1779040244000,-500.0,0.00010958,2]
[422532584,1779040244000,-1047.88,0.00010958,2]
[422532638,1779040244000,-491.41286836,0.00010958,2]
[422532698,1779040244000,-500.0,0.00010958,2]
[422532580,1779040244000,-500.0,0.00010958,2]
[422532582,1779040244000,-754.75,0.00010958,2]
[422532590,1779040244000,-541.54,0.00010958,2]
[422532588,1779040244000,-1017.36,0.00010958,2]
[422532586,1779040244000,-798.1,0.00010958,2]
[422532592,1779040244000,-500.0,0.00010958,2]
[422532594,1779040244000,-500.0,0.00010958,2]
[422532598,1779040244000,-1775.53,0.00010958,2]
[422532596,1779040244000,-500.0,0.00010958,2]
[422532600,1779040244000,-2427.61,0.00010958,2]
[422532602,1779040244000,-245.56889931,0.00010958,2]
[422532616,1779040244000,-755.37,0.00010958,2]
[422532603,1779040244000,-932.09,0.00010958,2]
[422532641,1779040244000,-500.0,0.00010958,2]
[422532605,1779040244000,-500.0,0.00010958,2]
[422532618,1779040244000,-500.0,0.00010958,2]
[422532621,1779040244000,-1168.26,0.00010958,2]
[422532607,1779040244000,-500.0,0.00010958,2]
[422532608,1779040244000,-500.0,0.00010958,2]
[422532612,1779040244000,-500.0,0.00010958,2]
[422532623,1779040244000,-500.0,0.00010958,2]
[422532620,1779040244000,-871.7,0.00010958,2]
[422532610,1779040244000,-500.0,0.00010958,2]
[422532625,1779040244000,-734.98,0.00010958,2]
[422532627,1779040244000,-500.0,0.00010958,2]
[422532630,1779040244000,-500.0,0.00010958,2]
[422532628,1779040244000,-346.35563675,0.00010958,2]
[422532634,1779040244000,-1051.25,0.00010958,2]
[422532632,1779040244000,-914.85,0.00010958,2]
[422532614,1779040244000,-500.0,0.00010958,2]
[422532694,1779040244000,-500.0,0.00010958,2]
[422532800,1779040244000,-500.0,0.00010958,2]
[422532703,1779040244000,-1351.31,0.00010958,2]
[422532765,1779040244000,-500.0,0.00010958,2]
[422532777,1779040244000,-767.92,0.00010958,2]
[422532775,1779040244000,-500.0,0.00010958,2]
[422532767,1779040244000,-500.0,0.00010958,2]
[422532773,1779040244000,-730.02,0.00010958,2]
[422532791,1779040244000,-500.0,0.00010958,2]
[422532779,1779040244000,-500.0,0.00010958,2]
[422532795,1779040244000,-500.0,0.00010958,2]
[422532797,1779040244000,-1688.55,0.00010958,2]
[422532793,1779040244000,-826.66,0.00010958,2]
[422532781,1779040244000,-500.0,0.00010958,2]
[422532783,1779040244000,-688.18,0.00010958,2]
[422532798,1779040244000,-500.0,0.00010958,2]
[422532787,1779040244000,-500.0,0.00010958,2]
[422532785,1779040244000,-739.09,0.00010958,2]
[422532799,1779040244000,-500.0,0.00010958,2]
[422532789,1779040244000,-500.0,0.00010958,2]
[422532802,1779040244000,-500.0,0.00010958,2]
[422532805,1779040244000,-1537.11,0.00010958,2]
[422532803,1779040244000,-500.0,0.00010958,2]
[422532814,1779040244000,-500.0,0.00010958,2]
[422532816,1779040244000,-500.0,0.00010958,2]
[422532818,1779040244000,-500.0,0.00010958,2]
[422532808,1779040244000,-500.0,0.00010958,2]
[422532807,1779040244000,-500.0,0.00010958,2]
[422532812,1779040244000,-500.0,0.00010958,2]
[422532810,1779040244000,-500.0,0.00010958,2]
[422532700,1779040244000,-500.0,0.00010958,2]
[422532822,1779040244000,-500.0,0.00010958,2]
[422532771,1779040244000,-748.48,0.00010958,2]
[422532769,1779040244000,-500.0,0.00010958,2]
[422532820,1779040244000,-500.0,0.00010958,2]
[422532761,1779040244000,-500.0,0.00010958,2]
[422532764,1779040244000,-500.0,0.00010958,2]
[422532715,1779040244000,-500.0,0.00010958,2]
[422532717,1779040244000,-500.0,0.00010958,2]
[422532724,1779040244000,-514.44,0.00010958,2]
[422532723,1779040244000,-500.0,0.00010958,2]
[422532721,1779040244000,-500.0,0.00010958,2]
[422532719,1779040244000,-500.0,0.00010958,2]
[422532705,1779040244000,-500.0,0.00010958,2]
[422532707,1779040244000,-959.49,0.00010958,2]
[422532702,1779040244000,-504.46425658,0.00010958,2]
[422532711,1779040244000,-500.0,0.00010958,2]
[422532709,1779040244000,-461.76577644,0.00010958,2]
[422532730,1779040244000,-500.0,0.00010958,2]
[422532726,1779040244000,-500.0,0.00010958,2]
[422532728,1779040244000,-500.0,0.00010958,2]
[422532713,1779040244000,-678.3,0.00010958,2]
[422532738,1779040244000,-500.0,0.00010958,2]
[422532732,1779040244000,-500.0,0.00010958,2]
[422532760,1779040244000,-500.0,0.00010958,2]
[422532757,1779040244000,-500.0,0.00010958,2]
[422532753,1779040244000,-5447.41,0.00010958,2]
[422532751,1779040244000,-500.0,0.00010958,2]
[422532744,1779040244000,-858.25,0.00010958,2]
[422532742,1779040244000,-474.35215723,0.00010958,2]
[422532755,1779040244000,-500.0,0.00010958,2]
[422532746,1779040244000,-500.0,0.00010958,2]
[422532748,1779040244000,-863.96,0.00010958,2]
[422532740,1779040244000,-500.0,0.00010958,2]
[422532736,1779040244000,-500.0,0.00010958,2]
[422532734,1779040244000,-500.0,0.00010958,2]
[422532750,1779040244000,-500.0,0.00010958,2]
[422532911,1779040245000,-500.0,0.00010958,2]
[422532906,1779040245000,-573.64,0.00010958,2]
[422532907,1779040245000,-500.0,0.00010958,2]
[422532904,1779040245000,-500.0,0.00010958,2]
[422532902,1779040245000,-500.0,0.00010958,2]
[422532893,1779040245000,-500.0,0.00010958,2]
[422532895,1779040245000,-500.0,0.00010958,2]
[422532889,1779040245000,-723.17,0.00010958,2]
[422532891,1779040245000,-500.0,0.00010958,2]
[422532897,1779040245000,-1013.15,0.00010958,2]
[422532909,1779040245000,-500.0,0.00010958,2]
[422532900,1779040245000,-8453.22,0.00010958,2]
[422532898,1779040245000,-622.46,0.00010958,2]
[422532928,1779040245000,-500.0,0.00010958,2]
[422532915,1779040245000,-157.75520931,0.00010958,2]
[422532919,1779040245000,-2575.69,0.00010958,2]
[422532917,1779040245000,-1758.11,0.00010958,2]
[422532924,1779040245000,-500.0,0.00010958,2]
[422532926,1779040245000,-500.0,0.00010958,2]
[422532922,1779040245000,-500.0,0.00010958,2]
[422532931,1779040245000,-500.0,0.00010958,2]
[422532933,1779040245000,-500.0,0.00010958,2]
[422532920,1779040245000,-5613.05,0.00010958,2]
[422532937,1779040245000,-11937.94,0.00010958,2]
[422532935,1779040245000,-4377.35,0.00010958,2]
[422532939,1779040245000,-500.0,0.00010958,2]
[422532887,1779040245000,-642.43,0.00010958,2]
[422532947,1779040245000,-500.0,0.00010958,2]
[422532913,1779040245000,-709.43,0.00010958,2]
[422532885,1779040245000,-500.0,0.00010958,2]
[422532852,1779040245000,-666.68,0.00010958,2]
[422532879,1779040245000,-548.01,0.00010958,2]
[422532941,1779040245000,-500.0,0.00010958,2]
[422532824,1779040245000,-500.0,0.00010958,2]
[422532827,1779040245000,-500.0,0.00010958,2]
[422532830,1779040245000,-882.06,0.00010958,2]
[422532829,1779040245000,-500.0,0.00010958,2]
[422532832,1779040245000,-534.37,0.00010958,2]
[422532840,1779040245000,-4854.83,0.00010958,2]
[422532834,1779040245000,-500.0,0.00010958,2]
[422532845,1779040245000,-500.0,0.00010958,2]
[422532836,1779040245000,-500.0,0.00010958,2]
[422532842,1779040245000,-500.0,0.00010958,2]
[422532838,1779040245000,-500.0,0.00010958,2]
[422532847,1779040245000,-2685.02,0.00010958,2]
[422532883,1779040245000,-880.52,0.00010958,2]
[422532849,1779040245000,-500.0,0.00010958,2]
[422532854,1779040245000,-506.79613584,0.00010958,2]
[422532856,1779040245000,-677.11,0.00010958,2]
[422532870,1779040245000,-500.0,0.00010958,2]
[422532868,1779040245000,-500.0,0.00010958,2]
[422532858,1779040245000,-500.0,0.00010958,2]
[422532862,1779040245000,-500.0,0.00010958,2]
[422532872,1779040245000,-500.0,0.00010958,2]
[422532864,1779040245000,-500.0,0.00010958,2]
[422532874,1779040245000,-500.0,0.00010958,2]
[422532860,1779040245000,-500.0,0.00010958,2]
[422532866,1779040245000,-500.0,0.00010958,2]
[422532877,1779040245000,-500.0,0.00010958,2]
[422532881,1779040245000,-612.53,0.00010958,2]
[422532850,1779040245000,-4993.47,0.00010958,2]
[422532949,1779040245000,-500.0,0.00010958,2]
[422533063,1779040245000,-1164.28,0.00010958,2]
[422532943,1779040245000,-500.0,0.00010958,2]
[422533021,1779040245000,-500.0,0.00010958,2]
[422533022,1779040245000,-500.0,0.00010958,2]
[422533009,1779040245000,-500.0,0.00010958,2]
[422533028,1779040245000,-500.0,0.00010958,2]
[422533026,1779040245000,-500.0,0.00010958,2]
[422533013,1779040245000,-500.0,0.00010958,2]
[422533024,1779040245000,-824.7,0.00010958,2]
[422533030,1779040245000,-1550.99,0.00010958,2]
[422533041,1779040245000,-500.0,0.00010958,2]
[422533043,1779040245000,-500.0,0.00010958,2]
[422533045,1779040245000,-500.0,0.00010958,2]
[422533047,1779040245000,-500.0,0.00010958,2]
[422533033,1779040245000,-4899.41,0.00010958,2]
[422533019,1779040245000,-500.0,0.00010958,2]
[422533032,1779040245000,-4072.53,0.00010958,2]
[422533037,1779040245000,-4740.71,0.00010958,2]
[422533035,1779040245000,-500.0,0.00010958,2]
[422533049,1779040245000,-540.72767046,0.00010958,2]
[422533051,1779040245000,-500.0,0.00010958,2]
[422533052,1779040245000,-500.0,0.00010958,2]
[422533054,1779040245000,-652.35,0.00010958,2]
[422533056,1779040245000,-500.0,0.00010958,2]
[422533067,1779040245000,-4222.07,0.00010958,2]
[422533059,1779040245000,-581.39690039,0.00010958,2]
[422533058,1779040245000,-2667.45,0.00010958,2]
[422533065,1779040245000,-3013.2,0.00010958,2]
[422533061,1779040245000,-1155.41,0.00010958,2]
[422533069,1779040245000,-500.0,0.00010958,2]
[422533039,1779040245000,-4180.47,0.00010958,2]
[422533011,1779040245000,-1333.55,0.00010958,2]
[422533071,1779040245000,-500.0,0.00010958,2]
[422533017,1779040245000,-500.0,0.00010958,2]
[422533007,1779040245000,-599.89,0.00010958,2]
[422532956,1779040245000,-500.0,0.00010958,2]
[422532952,1779040245000,-769.2,0.00010958,2]
[422532954,1779040245000,-500.0,0.00010958,2]
[422532958,1779040245000,-500.0,0.00010958,2]
[422532960,1779040245000,-950.81,0.00010958,2]
[422532961,1779040245000,-2513.38,0.00010958,2]
[422532963,1779040245000,-500.0,0.00010958,2]
[422532976,1779040245000,-500.0,0.00010958,2]
[422532978,1779040245000,-951.51,0.00010958,2]
[422532965,1779040245000,-500.0,0.00010958,2]
[422532969,1779040245000,-500.0,0.00010958,2]
[422532967,1779040245000,-500.0,0.00010958,2]
[422532980,1779040245000,-500.0,0.00010958,2]
[422532945,1779040245000,-500.0,0.00010958,2]
[422532995,1779040245000,-1962.3,0.00010958,2]
[422532990,1779040245000,-500.0,0.00010958,2]
[422533015,1779040245000,-500.0,0.00010958,2]
[422533004,1779040245000,-646.2,0.00010958,2]
[422533002,1779040245000,-500.0,0.00010958,2]
[422533000,1779040245000,-813.31,0.00010958,2]
[422532998,1779040245000,-574.24,0.00010958,2]
[422533006,1779040245000,-500.0,0.00010958,2]
[422532986,1779040245000,-500.0,0.00010958,2]
[422532988,1779040245000,-500.0,0.00010958,2]
[422532991,1779040245000,-711.31,0.00010958,2]
[422532993,1779040245000,-500.0,0.00010958,2]
[422532997,1779040245000,-500.0,0.00010958,2]
[422532984,1779040245000,-500.0,0.00010958,2]
[422532982,1779040245000,-500.0,0.00010958,2]
[422533127,1779040246000,-11313.04,0.00010958,2]
[422533129,1779040246000,-977.56,0.00010958,2]
[422533123,1779040246000,-500.0,0.00010958,2]
[422533125,1779040246000,-500.0,0.00010958,2]
[422533134,1779040246000,-2223.13,0.00010958,2]
[422533140,1779040246000,-500.0,0.00010958,2]
[422533131,1779040246000,-500.0,0.00010958,2]
[422533136,1779040246000,-2432.64,0.00010958,2]
[422533133,1779040246000,-500.0,0.00010958,2]
[422533138,1779040246000,-660.84,0.00010958,2]
[422533153,1779040246000,-500.0,0.00010958,2]
[422533143,1779040246000,-500.0,0.00010958,2]
[422533160,1779040246000,-509.1,0.00010958,2]
[422533147,1779040246000,-500.0,0.00010958,2]
[422533151,1779040246000,-4939.07,0.00010958,2]
[422533157,1779040246000,-500.0,0.00010958,2]
[422533145,1779040246000,-500.0,0.00010958,2]
[422533119,1779040246000,-500.0,0.00010958,2]
[422533149,1779040246000,-500.0,0.00010958,2]